bitfinex-derivatives/quotes_BNBF0:USTF0_20250709
["timestamp","ask_amount","ask_price","bid_price","bid_amount"]
[1752093380521,0.25996534,669.85,668.96,1.52292291]
[1752093380718,0.25996534,669.85,668.97,1.52292291]
[1752093381018,0.25996534,669.85,668.98,1.52292291]
[1752093381223,0.25996534,669.85,668.99,1.52292291]
[1752093381421,0.25996534,669.85,668.73,1.66603611]
[1752093381621,0.25996534,669.85,668.74,1.5196994]
[1752093381824,0.25996534,669.85,668.78,1.66603611]
[1752093382022,0.25996534,669.85,668.79,1.5196994]
[1752093382224,0.25996534,669.85,668.8,1.5196994]
[1752093382419,0.25996534,669.85,668.81,1.5196994]
[1752093382619,0.25996534,669.85,668.82,1.5196994]
[1752093382823,0.25996534,669.85,668.83,1.5196994]
[1752093383023,0.25996534,669.85,668.84,1.5196994]
[1752093383225,0.25996534,669.85,668.85,1.5196994]
[1752093383421,0.25996534,669.85,668.86,1.5196994]
[1752093383627,0.25996534,669.85,668.87,1.5196994]
[1752093383922,0.25996534,669.85,668.88,1.5196994]
[1752093384222,0.25996534,669.85,668.89,1.5196994]
[1752093384422,0.25996534,669.85,668.9,1.5196994]
[1752093384627,0.25996534,669.85,668.91,1.5196994]
[1752093384822,0.25996534,669.85,668.92,1.5196994]
[1752093385126,0.25996534,669.85,668.93,1.5196994]
[1752093385326,0.25996534,669.85,668.94,1.5196994]
[1752093385523,0.25996534,669.85,668.95,1.5196994]
[1752093385722,0.25996534,669.85,668.96,1.5196994]
[1752093385922,0.25996534,669.85,668.97,1.5196994]
[1752093386227,0.25996534,669.85,668.98,1.5196994]
[1752093386422,0.25996534,669.85,668.99,1.5196994]
[1752093386622,0.25996534,669.85,669.0,1.5196994]
[1752093386822,0.25996534,669.85,669.01,1.5196994]
[1752093387021,0.25996534,669.85,668.7,1.66603611]
[1752093387222,0.25996534,669.85,668.71,1.51884663]
[1752093387523,0.25996534,669.85,668.72,1.51884663]
[1752093387822,0.25996534,669.85,668.73,3.18488274]
[1752093388026,0.25996534,669.85,668.74,1.51884663]
[1752093388227,0.25996534,669.85,668.75,1.51884663]
[1752093388523,0.25996534,669.85,668.76,1.51884663]
[1752093388727,0.25996534,669.85,668.77,1.51884663]
[1752093388927,0.25996534,669.85,668.78,1.51884663]
[1752093389124,0.25996534,669.85,668.79,1.51884663]
[1752093389326,0.25996534,669.85,668.8,1.51884663]
[1752093389523,0.25996534,669.85,668.81,1.51884663]
[1752093389825,0.25996534,669.85,668.82,1.51884663]
[1752093390024,0.25996534,669.85,668.83,1.51884663]
[1752093390328,0.25996534,669.85,668.84,1.51884663]
[1752093390529,0.25996534,669.85,668.85,1.51884663]
[1752093390729,0.25996534,669.85,668.86,1.51884663]
[1752093390930,0.25996534,669.85,668.87,1.51884663]
[1752093391229,0.25996534,669.85,668.88,1.51884663]
[1752093391431,0.25996534,669.85,668.89,1.51884663]
[1752093391631,0.25996534,669.85,668.9,1.51884663]
[1752093391827,0.25996534,669.85,668.91,1.51884663]
[1752093392031,0.25996534,669.85,668.92,1.51884663]
[1752093392331,0.25996534,669.85,668.93,1.51884663]
[1752093392532,0.25996534,669.85,668.94,1.51884663]
[1752093392732,0.25996534,669.85,668.95,1.51884663]
[1752093392935,0.25996534,669.85,668.96,1.51884663]
[1752093393232,0.25996534,669.85,668.97,1.51884663]
[1752093393432,0.25996534,669.85,668.98,1.51884663]
[1752093393633,0.25996534,669.85,668.99,1.51884663]
[1752093393928,0.25996534,669.85,668.72,1.66603611]
[1752093393929,0.25996534,669.85,669.0,1.51884663]
[1752093394134,0.25996534,669.85,668.72,1.66603611]
[1752093394434,0.25996534,669.85,668.73,3.18420261]
[1752093394733,0.25996534,669.85,668.74,1.5181665]
[1752093394930,0.25996534,669.85,668.75,1.5181665]
[1752093395233,0.25996534,669.85,668.76,1.5181665]
[1752093395429,0.25996534,669.85,668.77,1.5181665]
[1752093395633,0.25996534,669.85,668.78,1.5181665]
[1752093395834,0.25996534,669.85,668.79,1.5181665]
[1752093396133,0.25996534,669.85,668.8,1.5181665]
[1752093396429,0.25996534,669.85,668.81,1.5181665]
[1752093396633,0.25996534,669.85,668.76,1.66603611]
[1752093396634,0.25996534,669.85,668.82,1.5181665]
[1752093396830,0.25996534,669.85,668.83,1.5181665]
[1752093397031,0.25996534,669.85,668.84,1.5181665]
[1752093397234,0.25996534,669.85,668.85,1.5181665]
[1752093397429,0.25996534,669.85,668.86,1.5181665]
[1752093397632,0.25996534,669.85,668.87,1.5181665]
[1752093397829,0.25996534,669.85,668.88,1.5181665]
[1752093398130,0.25996534,669.85,668.89,1.5181665]
[1752093398431,0.25996534,669.85,668.9,1.5181665]
[1752093398632,0.25996534,669.85,668.81,1.66603611]
[1752093398633,0.25996534,669.85,668.91,1.5181665]
[1752093398838,0.25996534,669.85,668.92,1.5181665]
[1752093399138,0.25996534,669.85,668.93,1.5181665]
[1752093399344,0.25996534,669.85,668.94,1.5181665]
[1752093399542,0.25996534,669.85,668.95,1.5181665]
[1752093399841,0.25996534,669.85,668.96,1.5181665]
[1752093400039,0.25996534,669.85,668.97,1.5181665]
[1752093400244,0.25996534,669.85,668.98,1.5181665]
[1752093400444,0.25996534,669.85,668.99,1.5181665]
[1752093400644,0.25996534,669.85,669.0,1.5181665]
[1752093400845,0.25996534,669.85,669.01,1.5181665]
[1752093401046,0.25996534,669.85,669.02,1.5181665]
[1752093401246,0.25996534,669.85,669.03,1.5181665]
[1752093401445,0.25996534,669.85,669.04,1.5181665]
[1752093401645,0.25996534,669.85,669.05,1.5181665]
[1752093401946,0.25996534,669.85,669.06,1.5181665]
[1752093402140,0.25996534,669.85,669.07,1.5181665]
[1752093402345,0.25996534,669.85,668.75,1.66603611]
[1752093402544,0.25996534,669.85,668.76,1.52054851]
[1752093402744,0.25996534,669.85,668.77,1.52054851]
[1752093402945,0.25996534,669.85,668.78,1.52054851]
[1752093403241,0.25996534,669.85,668.79,1.52054851]
[1752093403541,0.25996534,669.85,668.8,1.52054851]
[1752093403743,0.25996534,669.85,668.81,1.52054851]
[1752093403942,0.25996534,669.85,668.82,1.52054851]
[1752093404146,0.25996534,669.85,668.83,1.52054851]
[1752093404347,0.25996534,669.85,668.84,1.52054851]
[1752093404546,0.25996534,669.85,668.85,1.52054851]
[1752093404846,0.25996534,669.85,668.86,1.52054851]
[1752093405147,0.25996534,669.85,668.87,1.52054851]
[1752093405341,0.25996534,669.85,668.88,1.52054851]
[1752093405541,0.25996534,669.85,668.89,1.52054851]
[1752093405746,0.25996534,669.85,668.9,1.52054851]
[1752093405944,0.25996534,669.85,668.91,1.52054851]
[1752093406143,0.25996534,669.85,668.92,1.52054851]
[1752093406345,0.25996534,669.85,668.77,1.66603611]
[1752093406346,0.25996534,669.85,668.93,1.52054851]
[1752093406546,0.25996534,669.85,668.94,1.52054851]
[1752093406744,0.25996534,669.85,668.95,1.52054851]
[1752093406946,0.25996534,669.85,668.96,1.52054851]
[1752093407147,0.25996534,669.85,668.97,1.52054851]
[1752093407347,0.25996534,669.85,668.98,1.52054851]
[1752093407546,0.25996534,669.85,668.99,1.52054851]
[1752093407745,0.25996534,669.85,669.0,1.52054851]
[1752093408047,0.25996534,669.85,669.01,1.52054851]
[1752093408251,0.25996534,669.85,669.02,1.52054851]
[1752093408448,0.25996534,669.85,669.03,1.52054851]
[1752093408651,0.25996534,669.85,669.04,1.52054851]
[1752093408851,0.25996534,669.85,669.05,1.52054851]
[1752093409152,0.25996534,669.85,668.7,1.66603611]
[1752093409351,0.25996534,669.85,668.71,1.53154954]
[1752093409553,0.25996534,669.85,668.72,1.53154954]
[1752093409753,0.25996534,669.85,668.73,1.53154954]
[1752093410053,0.25996534,669.85,668.74,1.53154954]
[1752093410349,0.25996534,669.85,668.75,1.53154954]
[1752093410551,0.25996534,669.85,668.76,1.53154954]
[1752093410749,0.25996534,669.85,668.77,1.53154954]
[1752093411053,0.25996534,669.85,668.78,1.53154954]
[1752093411353,0.25996534,669.85,668.79,1.53154954]
[1752093411549,0.25996534,669.85,668.8,1.53154954]
[1752093411754,0.25996534,669.85,668.81,1.53154954]
[1752093412050,0.25996534,669.85,668.82,1.53154954]
[1752093412252,0.25996534,669.85,668.83,1.53154954]
[1752093412450,0.25996534,669.85,668.84,1.53154954]
[1752093412753,0.25996534,669.85,668.85,1.53154954]
[1752093412951,0.25996534,669.85,668.86,1.53154954]
[1752093413148,0.25996534,669.85,668.87,1.53154954]
[1752093413353,0.25996534,669.85,668.88,1.53154954]
[1752093413550,0.25996534,669.85,668.89,1.53154954]
[1752093413750,0.25996534,669.85,668.9,1.53154954]
[1752093413954,0.25996534,669.85,668.91,1.53154954]
[1752093414151,0.25996534,669.85,668.92,1.53154954]
[1752093414354,0.25996534,669.85,668.93,1.53154954]
[1752093414556,0.25996534,669.85,668.94,1.53154954]
[1752093414752,0.25996534,669.85,668.95,1.53154954]
[1752093414954,0.25996534,669.85,668.68,1.66603611]
[1752093415151,0.25996534,669.85,668.69,1.53252538]
[1752093415452,0.25996534,669.85,668.7,1.53252538]
[1752093415656,0.25996534,669.85,668.71,1.53252538]
[1752093415953,0.25996534,669.85,668.72,1.53252538]
[1752093416157,0.25996534,669.85,668.73,1.53252538]
[1752093416357,0.25996534,669.85,668.74,1.53252538]
[1752093416657,0.25996534,669.85,668.75,1.53252538]
[1752093416859,0.25996534,669.85,668.76,1.53252538]
[1752093417058,0.25996534,669.85,668.77,1.53252538]
[1752093417255,0.25996534,669.85,668.78,1.53252538]
[1752093417460,0.25996534,669.85,668.79,1.53252538]
[1752093417656,0.25996534,669.85,668.8,1.53252538]
[1752093417857,3.35893297,669.91,668.81,1.53252538]
[1752093418156,3.35893297,669.89,668.82,1.53252538]
[1752093418361,3.35893297,669.81,668.83,1.53252538]
[1752093418561,3.35893297,669.86,668.84,1.53252538]
[1752093418761,3.35893297,669.86,668.85,1.53252538]
[1752093418962,3.35893297,669.85,668.86,1.53252538]
[1752093419162,3.35893297,669.85,668.87,1.53252538]
[1752093419364,3.35893297,669.85,668.76,2.327]
[1752093419659,3.35893297,669.84,668.77,1.53370652]
[1752093419860,3.35893297,669.85,668.78,1.53370652]
[1752093420063,3.35893297,669.85,668.79,1.53370652]
[1752093420363,3.35893297,669.85,668.8,1.53370652]
[1752093420561,3.35893297,669.86,668.81,1.53370652]
[1752093420759,3.35893297,669.86,668.82,1.53370652]
[1752093420963,3.35893297,669.86,668.83,1.53370652]
[1752093421165,3.35893297,669.86,668.84,1.53370652]
[1752093421364,3.35893297,669.85,668.85,1.53370652]
[1752093421564,3.35893297,669.85,668.86,1.53370652]
[1752093421761,3.35893297,669.85,668.87,1.53370652]
[1752093421961,3.35893297,669.85,668.76,2.327]
[1752093422165,3.35893297,669.85,668.77,1.53393375]
[1752093422366,3.35893297,669.84,668.78,1.53393375]
[1752093422665,0.26005081,669.58,668.79,1.53393375]
[1752093422862,0.26005081,669.58,668.8,1.53393375]
[1752093423066,0.26005081,669.58,668.81,1.53393375]
[1752093423262,0.26005081,669.58,668.82,1.53393375]
[1752093423464,0.26005081,669.58,668.83,1.53393375]
[1752093423667,0.26005081,669.58,668.84,1.53393375]
[1752093423867,0.26005081,669.58,668.85,1.53393375]
[1752093424069,0.26005081,669.58,668.86,1.53393375]
[1752093424269,0.26005081,669.58,668.87,1.53393375]
[1752093424566,0.26005081,669.58,668.88,1.53393375]
[1752093424766,0.26005081,669.58,668.89,1.53393375]
[1752093424964,0.26005081,669.58,668.76,2.327]
[1752093425166,0.26005081,669.58,668.77,1.534578]
[1752093425366,0.26005081,669.58,668.78,1.534578]
[1752093425566,0.26005081,669.58,668.79,1.534578]
[1752093425866,0.26005081,669.58,668.8,1.534578]
[1752093426069,0.26005081,669.58,668.81,1.534578]
[1752093426369,0.26005081,669.58,668.82,1.534578]
[1752093426565,0.26005081,669.58,668.83,1.534578]
[1752093426769,0.26005081,669.58,668.84,1.534578]
[1752093426969,0.26005081,669.58,668.85,1.534578]
[1752093427167,0.26005081,669.58,668.86,1.534578]
[1752093427372,0.26005081,669.58,668.87,1.534578]
[1752093427572,0.26005081,669.58,668.88,1.534578]
[1752093427770,0.26005081,669.58,668.89,1.534578]
[1752093428068,0.26005081,669.58,668.9,1.534578]
[1752093428370,0.26005081,669.58,668.91,1.534578]
[1752093428570,0.26005081,669.58,668.76,2.327]
[1752093428571,0.26005081,669.58,668.92,1.534578]
[1752093428768,0.26005081,669.58,668.76,2.327]
[1752093428971,0.26005081,669.58,668.77,1.53592562]
[1752093429167,0.26005081,669.58,668.78,1.53592562]
[1752093429371,0.26005081,669.58,668.79,1.53592562]
[1752093429674,3.35893297,670.02,668.8,1.53592562]
[1752093429968,0.25996534,669.67,668.81,1.53592562]
[1752093430168,0.25996534,669.67,668.82,1.53592562]
[1752093430367,0.25996534,669.67,668.83,1.53592562]
[1752093430672,0.25996534,669.67,668.84,1.53592562]
[1752093430867,0.25996534,669.67,668.85,1.53592562]
[1752093431071,0.25996534,669.67,668.86,1.53702624]
[1752093431272,0.25996534,669.67,668.87,1.53702624]
[1752093431568,0.25996534,669.67,668.88,1.53702624]
[1752093431872,0.25996534,669.67,668.89,1.53702624]
[1752093432072,0.25996534,669.67,668.9,1.53702624]
[1752093432274,3.35893297,669.65,668.91,1.53702624]
[1752093432469,3.35893297,669.65,668.76,2.327]
[1752093432670,3.35893297,669.66,668.77,1.53831161]
[1752093432974,3.35893297,669.65,668.78,1.53831161]
[1752093433175,3.35893297,669.65,668.79,1.53831161]
[1752093433376,3.35893297,669.65,668.76,2.327]
[1752093433377,3.35893297,669.62,668.8,1.53831161]
[1752093433676,3.35893297,669.62,668.81,1.53831161]
[1752093433974,0.25996534,669.67,668.82,1.53831161]
[1752093433975,3.35893297,669.63,668.82,1.53831161]
[1752093434172,2.22973034,669.47,668.76,2.327]
[1752093434370,2.22973034,669.44,668.76,2.327]
[1752093434976,2.22973034,669.41,668.76,2.327]
[1752093435273,2.22973034,669.4,668.76,2.327]
[1752093435472,2.22973034,669.39,668.76,2.327]
[1752093435677,2.22973034,669.18,668.76,2.327]
[1752093435873,2.22973034,669.17,668.76,2.327]
[1752093436277,2.22973034,669.31,668.76,2.327]
[1752093436877,0.25996534,669.67,668.76,2.327]
[1752093437473,0.25996534,669.67,668.49,1.67389023]
[1752093437474,2.22896063,669.35,668.49,1.67389023]
[1752093438077,2.22896063,669.33,668.47,1.67389023]
[1752093438274,2.22896063,669.35,668.47,1.67389023]
[1752093438474,2.22896063,669.35,668.45,1.67389023]
[1752093439274,2.22896063,669.37,668.44,1.67389023]
[1752093439878,2.22896063,669.39,668.43,1.67389023]
[1752093440175,2.22896063,669.4,668.43,1.67389023]
[1752093440477,2.22896063,669.36,668.38,1.67389023]
[1752093440878,2.22896063,669.35,668.39,2.017]
[1752093441174,2.22896063,669.37,668.39,2.017]
[1752093441674,2.22896063,669.47,668.47,1.67389023]
[1752093441879,2.22896063,669.55,668.49,1.67389023]
[1752093442379,2.22896063,669.56,668.49,1.67389023]
[1752093442881,2.22896063,669.46,668.39,3.69089023]
[1752093443376,2.22896063,669.48,668.39,3.69089023]
[1752093443776,2.22896063,669.58,668.49,1.67389023]
[1752093443981,2.22896063,669.61,668.52,1.67389023]
[1752093444480,2.22896063,669.65,668.56,1.67389023]
[1752093445280,0.25996534,669.67,668.61,1.67389023]
[1752093445480,2.22896063,669.66,668.57,1.67389023]
[1752093445880,2.22896063,669.65,668.56,1.67389023]
[1752093446782,0.25996534,669.67,668.62,1.67389023]
[1752093447280,2.22896063,669.4,668.39,2.017]
[1752093447978,2.22896063,669.41,668.39,2.017]
[1752093448476,2.22896063,669.42,668.39,2.017]
[1752093448677,2.22896063,669.45,668.39,2.017]
[1752093449883,2.22896063,669.42,668.39,2.017]
[1752093451282,2.22896063,669.43,668.39,2.017]
[1752093451782,2.22896063,669.47,668.39,3.68950817]
[1752093452077,0.25996534,669.67,668.39,2.017]
[1752093452078,2.22896063,669.44,668.39,2.017]
[1752093452883,2.22896063,669.45,668.39,2.017]
[1752093453483,2.22896063,669.43,668.39,2.017]
[1752093453678,2.22896063,669.43,668.39,3.68950817]
[1752093453979,2.22896063,669.42,668.39,3.68950817]
[1752093454281,2.22896063,669.41,668.39,3.68950817]
[1752093454578,2.22896063,669.45,668.39,2.017]
[1752093456484,2.22896063,669.44,668.39,3.68950817]
[1752093457084,2.22896063,669.45,668.39,2.017]
[1752093457285,2.22896063,669.52,668.39,2.017]
[1752093457679,2.22896063,669.65,668.46,1.67250817]
[1752093458284,2.22896063,669.64,668.46,1.67250817]
[1752093458488,2.22896063,669.56,668.39,2.017]
[1752093458686,2.22896063,669.58,668.39,3.68950817]
[1752093458886,2.22896063,669.6,668.39,2.017]
[1752093459181,2.22896063,669.59,668.39,2.017]
[1752093460183,2.22896063,669.55,668.39,3.68950817]
[1752093460686,2.22896063,669.51,668.39,2.017]
[1752093461785,2.22896063,669.49,668.39,2.017]
[1752093462389,2.22896063,669.47,668.39,2.017]
[1752093462584,2.22896063,669.48,668.39,2.017]
[1752093462884,2.22896063,669.49,668.39,2.017]
[1752093463089,2.22896063,669.49,668.42,1.67250817]
[1752093463688,2.22896063,669.49,668.39,2.017]
[1752093463689,2.22896063,669.53,668.45,1.67250817]
[1752093464186,2.22896063,669.53,668.46,1.53456925]
[1752093464489,0.25996534,669.67,668.49,1.67250817]
[1752093464784,0.25996534,669.67,668.5,1.53456925]
[1752093464983,0.25996534,669.67,668.51,1.53456925]
[1752093465186,0.25996534,669.67,668.52,3.20707742]
[1752093465385,0.25996534,669.67,668.53,3.20707742]
[1752093465585,0.25996534,669.67,668.54,1.53456925]
[1752093465785,0.25996534,669.67,668.56,1.67250817]
[1752093465984,0.25996534,669.67,668.59,1.67250817]
[1752093466185,0.25996534,669.67,668.6,1.53456925]
[1752093466386,0.25996534,669.67,668.61,1.53456925]
[1752093466586,0.25996534,669.67,668.62,1.53456925]
[1752093466786,0.25996534,669.67,668.63,1.53456925]
[1752093467086,0.25996534,669.67,668.64,1.53456925]
[1752093467286,0.25996534,669.67,668.65,1.53456925]
[1752093467489,0.25996534,669.67,668.66,1.53456925]
[1752093467686,3.34344095,669.64,668.67,1.53456925]
[1752093467887,3.34344095,669.62,668.68,1.53456925]
[1752093468191,3.34344095,669.61,668.69,1.53456925]
[1752093468389,0.25996534,669.67,668.7,1.53456925]
[1752093468390,3.34344095,669.55,668.7,1.53456925]
[1752093468591,3.34344095,669.55,668.39,2.017]
[1752093468592,3.34344095,669.52,668.46,1.67250817]
[1752093468791,3.34344095,669.49,668.47,1.53602376]
[1752093468992,3.34344095,669.49,668.48,1.53602376]
[1752093469191,3.34344095,669.48,668.49,1.53602376]
[1752093469394,3.34344095,669.48,668.5,1.53602376]
[1752093469690,3.34344095,669.48,668.51,1.53602376]
[1752093469893,3.34344095,669.49,668.52,1.53602376]
[1752093470091,3.34344095,669.49,668.41,1.67250817]
[1752093470092,3.34344095,669.48,668.53,1.53602376]
[1752093470290,3.34344095,669.47,668.54,1.53602376]
[1752093470589,3.34344095,669.47,668.55,1.53602376]
[1752093470790,3.34344095,669.47,668.56,1.53602376]
[1752093470992,3.34344095,669.47,668.57,1.53602376]
[1752093471296,3.34344095,669.47,668.58,1.53602376]
[1752093471596,3.34344095,669.45,668.59,1.53602376]
[1752093471895,3.34344095,669.45,668.6,1.53602376]
[1752093472195,3.34344095,669.45,668.61,1.53602376]
[1752093472391,3.34344095,669.45,668.62,1.53602376]
[1752093472696,3.34344095,669.45,668.63,1.53602376]
[1752093472995,3.34344095,669.45,668.64,1.53602376]
[1752093473193,3.34344095,669.44,668.65,1.53602376]
[1752093473393,0.25996534,669.67,668.39,2.017]
[1752093473394,3.34344095,669.46,668.39,2.017]
[1752093473597,3.34344095,669.46,668.4,1.53703093]
[1752093473798,3.34344095,669.46,668.41,1.53703093]
[1752093473999,3.34344095,669.46,668.42,1.53703093]
[1752093474297,3.34344095,669.51,668.43,1.53703093]
[1752093474494,3.34344095,669.51,668.44,1.53703093]
[1752093474699,3.34344095,669.52,668.45,1.53703093]
[1752093474895,3.34344095,669.51,668.46,1.53703093]
[1752093475099,3.34344095,669.51,668.47,1.53703093]
[1752093475399,3.34344095,669.51,668.48,1.53703093]
[1752093475700,3.34344095,669.49,668.49,1.53703093]
[1752093475899,3.34344095,669.49,668.5,1.53703093]
[1752093476099,3.34344095,669.49,668.51,1.53703093]
[1752093476299,3.34344095,669.49,668.52,1.53703093]
[1752093476596,3.34344095,669.49,668.53,1.53703093]
[1752093476799,3.34344095,669.49,668.54,1.53703093]
[1752093477098,3.34344095,669.5,668.55,1.53703093]
[1752093477298,3.34344095,669.5,668.56,1.53703093]
[1752093477496,3.34344095,669.5,668.57,1.53703093]
[1752093477796,3.34344095,669.49,668.58,1.53703093]
[1752093478001,3.34344095,669.49,668.59,1.53703093]
[1752093478300,3.34344095,669.5,668.6,1.53703093]
[1752093478597,3.34344095,669.5,668.39,2.017]
[1752093478598,3.34344095,669.52,668.61,1.53703093]
[1752093478797,3.34344095,669.52,668.62,1.53703093]
[1752093478996,3.34344095,669.52,668.39,2.017]
[1752093478997,3.34344095,669.52,668.63,1.53703093]
[1752093479302,3.34344095,669.47,668.64,1.53703093]
[1752093479597,3.34344095,669.47,668.65,1.53703093]
[1752093479803,3.34344095,669.47,668.66,1.53703093]
[1752093480001,3.34344095,669.45,668.67,1.53703093]
[1752093480298,3.34344095,669.46,668.68,1.53703093]
[1752093480497,3.34344095,669.44,668.43,1.67250817]
[1752093480798,3.34344095,669.46,668.44,1.53711645]
[1752093480997,3.34344095,669.46,668.45,1.53711645]
[1752093481197,3.34344095,669.46,668.46,1.53711645]
[1752093481498,3.34344095,669.52,668.49,1.67250817]
[1752093481701,3.34344095,669.53,668.5,3.20962462]
[1752093481902,3.34344095,669.53,668.51,1.53711645]
[1752093482098,3.34344095,669.53,668.52,1.53711645]
[1752093482301,3.34344095,669.6,668.56,1.67250817]
[1752093482502,3.34344095,669.6,668.57,1.53711645]
[1752093482699,3.34344095,669.59,668.58,1.53711645]
[1752093482902,3.34344095,669.59,668.59,1.53711645]
[1752093483197,3.34344095,669.59,668.6,1.53711645]
[1752093483401,3.34344095,669.61,668.61,1.53711645]
[1752093483600,3.34344095,669.62,668.62,1.53711645]
[1752093483800,3.34344095,669.62,668.63,1.53711645]
[1752093484004,3.34344095,669.62,668.64,1.53711645]
[1752093484303,3.34344095,669.62,668.65,1.53711645]
[1752093484603,3.34344095,669.62,668.39,2.017]
[1752093484604,3.34344095,669.63,668.66,1.53711645]
[1752093484903,3.34344095,669.63,668.67,1.53711645]
[1752093485100,3.34344095,669.63,668.68,1.53711645]
[1752093485300,3.34344095,669.63,668.58,1.67250817]
[1752093485500,3.34344095,669.63,668.59,1.53697777]
[1752093485803,3.34344095,669.65,668.6,1.53695941]
[1752093486103,3.34344095,669.65,668.61,1.53695941]
[1752093486399,3.34344095,669.65,668.62,1.53695941]
[1752093486703,3.34344095,669.65,668.63,1.53695941]
[1752093486899,3.34344095,669.65,668.64,1.53695941]
[1752093487103,3.34344095,669.65,668.65,1.53695941]
[1752093487303,3.34344095,669.65,668.66,1.53695941]
[1752093487499,3.34344095,669.65,668.67,1.53695941]
[1752093487701,3.34344095,669.65,668.68,1.53695941]
[1752093487905,3.34344095,669.65,668.59,1.67442966]
[1752093487906,3.34344095,669.64,668.69,1.53695941]
[1752093488101,3.34344095,669.64,668.7,1.53695941]
[1752093488302,3.34344095,669.63,668.71,1.53695941]
[1752093488502,3.34344095,669.64,668.72,1.53695941]
[1752093488705,3.34344095,669.65,668.73,1.53695941]
[1752093489001,3.34344095,669.65,668.74,1.53695941]
[1752093489204,3.34344095,669.64,668.75,1.53695941]
[1752093489402,3.34344095,669.64,668.76,1.53695941]
[1752093489620,3.34344095,669.64,668.77,1.53695941]
[1752093489802,3.34344095,669.64,668.78,1.53695941]
[1752093490006,3.34344095,669.64,668.79,1.53695941]
[1752093490205,0.25996534,669.67,668.8,1.53695941]
[1752093490206,3.34344095,669.63,668.8,1.53695941]
[1752093490506,3.34344095,669.63,668.81,1.53695941]
[1752093490706,3.34344095,669.64,668.82,1.53695941]
[1752093490904,3.34344095,669.64,668.83,1.53695941]
[1752093491105,3.34344095,669.64,668.84,1.53695941]
[1752093491302,3.34344095,669.63,668.85,1.53695941]
[1752093491601,3.34344095,669.63,668.86,1.53695941]
[1752093491904,3.34344095,669.63,668.87,1.53695941]
[1752093492105,3.34344095,669.63,668.59,1.67442966]
[1752093492402,3.34344095,669.63,668.6,1.53756278]
[1752093492601,3.34344095,669.62,668.61,1.53756278]
[1752093492805,3.34344095,669.63,668.62,1.53756278]
[1752093493005,3.34344095,669.63,668.63,1.53756278]
[1752093493203,3.34344095,669.61,668.64,1.53756278]
[1752093493404,3.34344095,669.62,668.65,1.53756278]
[1752093493603,3.34344095,669.62,668.66,1.53756278]
[1752093493806,0.25996534,669.67,668.67,1.53756278]
[1752093493807,3.34344095,669.63,668.67,1.53756278]
[1752093494002,3.34344095,669.63,668.68,1.53756278]
[1752093494203,3.34344095,669.64,668.69,1.53756278]
[1752093494402,3.34344095,669.64,668.7,1.53756278]
[1752093494605,3.34344095,669.61,668.71,1.53756278]
[1752093494805,3.34344095,669.61,668.72,1.53756278]
[1752093495003,3.34344095,669.61,668.73,1.53756278]
[1752093495205,3.34344095,669.61,668.74,1.53756278]
[1752093495407,3.34344095,669.61,668.75,1.53756278]
[1752093495605,3.34344095,669.61,668.76,1.53756278]
[1752093495907,3.34344095,669.61,668.77,1.53756278]
[1752093496103,3.34344095,669.61,668.78,1.53756278]
[1752093496306,3.34344095,669.61,668.79,1.53756278]
[1752093496506,3.34344095,669.61,668.8,1.53756278]
[1752093496710,3.34344095,669.61,668.81,1.53756278]
[1752093496909,3.34344095,669.61,668.82,1.53756278]
[1752093497107,3.34344095,669.61,668.83,1.53756278]
[1752093497306,3.34344095,669.62,668.84,1.53756278]
[1752093497508,3.34344095,669.62,668.85,1.53756278]
[1752093497808,3.34344095,669.62,668.86,1.53756278]
[1752093498015,3.34344095,669.62,668.87,1.53756278]
[1752093498215,3.34344095,669.62,668.88,1.53756278]
[1752093498415,3.34344095,669.62,668.71,1.689]
[1752093498616,3.34344095,669.62,668.72,1.54126279]
[1752093498816,3.34344095,669.6,668.73,1.54126279]
[1752093499017,3.34344095,669.6,668.74,1.54126279]
[1752093499318,3.34344095,669.6,668.75,1.54126279]
[1752093499616,3.34344095,669.6,668.76,1.54126279]
[1752093499814,3.34344095,669.61,668.77,1.54126279]
[1752093500016,3.34344095,669.64,668.78,1.54126279]
[1752093500216,3.34344095,669.64,668.79,1.54126279]
[1752093500416,3.34344095,669.63,668.8,1.54126279]
[1752093500616,3.34344095,669.63,668.81,1.54126279]
[1752093500818,3.34344095,669.63,668.82,1.54126279]
[1752093501017,3.34344095,669.63,668.83,1.54126279]
[1752093501216,3.34344095,669.63,668.84,1.54126279]
[1752093501513,3.34344095,669.63,668.85,1.54126279]
[1752093501716,3.34344095,669.63,668.86,1.54126279]
[1752093501913,3.34344095,669.63,668.87,1.54126279]
[1752093502114,3.34344095,669.63,668.88,1.54126279]
[1752093502316,3.34344095,669.63,668.71,1.689]
[1752093502515,3.34344095,669.63,668.72,1.54100172]
[1752093502719,3.34344095,669.63,668.73,1.54100172]
[1752093502920,3.34344095,669.63,668.74,1.54100172]
[1752093503120,3.34344095,669.63,668.75,1.54100172]
[1752093503418,3.34344095,669.63,668.71,1.689]
[1752093503419,3.34344095,669.65,668.76,1.54100172]
[1752093503620,3.34344095,669.64,668.77,1.54100172]
[1752093503817,3.34344095,669.64,668.78,1.54100172]